Cogmind - Beta 9.6 @@@ ROGUE MODE // 2020.05.15 @ 13:23:06 Player: Nalzok Result: Destroyed by S-27 Virus with Autogun Performance ------------- Evolutions (5) 2500 Regions Visited (17) 3400 Robots Destroyed (101) 505 Value Destroyed (4112) 4112 Prototype IDs (37) 740 Alien Tech Used (0) 0 Bonus (3700) 3700 TOTAL SCORE: 14957 Bonus ------- High Alert Combat Kills 325 Follower Combat Kills 1406 Aligned with FarCom 300 Met Warlord at Base 500 MAIN.C Attacked Warlord 500 Warlord Defense Kill 718 A7 Reached Mainframe 300 Friendly Fire -349 Cogmind --------- Core Integrity 0/1000 Matter 411/550 Energy 240/240 System Corruption 9% Temperature Cool (8) Movement Walking (210) Ox3 Location -4/Proximity Caves Parts ------- > --- POWER (2) -------- Micro Fission Core Micro Fission Core > --- PROPULSION (5) --- Armored Leg > --- UTILITY (8) ------ Improved Heat Sink High-capacity Storage Unit Matter Compressor Improved Target Analyzer > --- WEAPON (2) ------- High-powered Shock Rifle Enhanced Gauss Cannon > --- INVENTORY (12) --- Light Angular Momentum Engine Mass Driver Mass Driver Enhanced Gauss Cannon Thunder Hammer Kinetic Spear Plasma Lance Peak State ------------ > --- POWER ------------ Angular Momentum Engine Reinforced Fission Core > --- PROPULSION ------- Flexi-carbon Leg Flexi-carbon Leg Armored Leg Armored Leg Myomer Leg > --- UTILITY ---------- Advanced Power Amplifier Advanced Cooling System High-capacity Storage Unit Matter Compressor Experimental Targeting Computer Recoil Nullifier Improved Heavy Armor Plating > --- WEAPON ----------- Disruptor Cannon KE Penetrator > --- INVENTORY -------- Armored Leg Humpback Improved Shield Generator Railgun Mass Driver Mass Driver Enhanced Gauss Cannon Enhanced Gauss Cannon Thunder Hammer Kinetic Spear Plasma Lance [Rating: 97] Favorites ----------- Power Reinforced Fission Core Engine Angular Momentum Engine Power Core Reinforced Fission Core Propulsion Carbon-fiber Leg Treads Medium Treads Leg Carbon-fiber Leg Flight Unit Flying Fortress v7 Utility High-capacity Storage Unit Device Advanced Heat Sink Storage High-capacity Storage Unit Processor Improved Targeting Computer Protection Improved Heavy Armor Plating Weapon KE Penetrator Energy Gun Improved EM Shotgun Energy Cannon Disruptor Cannon Ballistic Gun KE Penetrator Ballistic Cannon Enhanced Gauss Cannon Launcher Mini Grenade Launcher Impact Weapon Heavy Flail Slashing Weapon Katana Piercing Weapon Kinetic Spear Build | -11 -10 -10 -9 -9 -9 -8 -8 -8 -8 -6 -6 -6 -6 -5 -5 -5 -4 ------- Run | Scr Mat Min Mat Min Exi Min Mat Sto Rec Fac Ext Cet Arc Fac Upp War Pro Slots Evolved 10 | . . . 2 . . . 2 . . 4 . . . 2 . . . Power 1 | . . . . . . . . . . 1 . . . . . . . Propulsion 3 | . . . 2 . . . . . . 1 . . . . . . . Utility 6 | . . . . . . . 2 . . 2 . . . 2 . . . Weapon . | . . . . . . . . . . . . . . . . . . Parts Attached 218 | . 6 6 18 . 1 . 9 15 . 8 39 30 26 39 3 7 11 Power 25 | . 1 2 3 . . . . 2 . 1 4 3 3 3 . 1 2 Engine 16 | . 1 1 3 . . . . 2 . . 2 1 3 2 . 1 . Core 9 | . . 1 . . . . . . . 1 2 2 . 1 . . 2 Reactor . | . . . . . . . . . . . . . . . . . . Propulsion 55 | . 2 2 7 . 1 . . 1 . 1 6 14 8 9 . 2 2 Treads 1 | . . . . . . . . . . . 1 . . . . . . Leg 51 | . 2 2 7 . . . . . . . 5 14 8 9 . 2 2 Wheel . | . . . . . . . . . . . . . . . . . . Hover . | . . . . . . . . . . . . . . . . . . Flight 3 | . . . . . 1 . . 1 . 1 . . . . . . . Utility 58 | . 2 . 1 . . . 5 2 . 5 10 4 8 17 . 1 3 Device 30 | . . . 1 . . . 1 1 . 3 7 1 5 9 . 1 1 Storage 9 | . 1 . . . . . . 1 . 1 2 . . 3 . . 1 Processor 7 | . 1 . . . . . 1 . . 1 . . 1 2 . . 1 Hackware . | . . . . . . . . . . . . . . . . . . Protection 12 | . . . . . . . 3 . . . 1 3 2 3 . . . Artifact . | . . . . . . . . . . . . . . . . . . Weapon 80 | . 1 2 7 . . . 4 10 . 1 19 9 7 10 3 3 4 Energy Gun 22 | . 1 1 6 . . . . 3 . . 4 2 1 3 . . 1 Energy Cannon 1 | . . . . . . . . . . . . . . . . 1 . Ballistic Gun 21 | . . 1 1 . . . 2 2 . . 3 2 6 1 1 . 2 Ballistic Cannon 20 | . . . . . . . . 4 . . 6 3 . 4 2 . 1 Launcher 3 | . . . . . . . . . . . 1 2 . . . . . Special Weapon . | . . . . . . . . . . . . . . . . . . Impact Weapon 6 | . . . . . . . . . . 1 4 . . 1 . . . Slashing Weapon 4 | . . . . . . . 2 1 . . 1 . . . . . . Piercing Weapon 3 | . . . . . . . . . . . . . . 1 . 2 . Special Melee Weapon . | . . . . . . . . . . . . . . . . . . Unidentified Prototypes 15 | . . . 1 . . . . 3 . 1 . 3 . 6 . 1 . Parts Lost 72 | . . 2 7 . . . . . . . 6 6 15 19 . 6 11 Power 11 | . . 1 2 . . . . . . . . 1 3 3 . 1 . Propulsion 20 | . . . 3 . . . . . . . 1 . 5 5 . . 6 Utility 23 | . . . . . . . . . . . 4 . 4 8 . 5 2 Weapon 18 | . . 1 2 . . . . . . . 1 5 3 3 . . 3 Highest Loss Streak 15 | . . 1 4 . . . . . . . 3 3 5 15 . 5 6 Average Slot Usage (%) 87 | . 99 98 96 100 91 66 59 61 63 77 78 92 90 85 94 93 76 Engine 7 | . 14 6 10 11 11 11 9 9 9 6 6 4 11 4 5 5 . Core 3 | . . 7 . . . . . . . 6 6 7 1 3 5 4 10 Leg 24 | . 28 28 43 44 33 . . . . . 7 33 30 26 29 29 22 Flight 2 | . . . . . 2 11 9 7 9 13 9 . . . . . . Device 11 | . . . 10 11 11 11 9 9 9 17 13 6 16 20 17 16 2 Storage 11 | . 14 14 11 11 11 11 9 9 9 11 12 13 9 8 11 11 16 Processor 4 | . 13 14 . . . . 1 . . 6 6 6 1 1 5 5 9 Protection 3 | . . . . . . . 4 9 9 1 2 6 6 6 5 4 . Energy Gun 2 | . 4 4 12 11 11 11 6 1 . . . 1 2 1 . . . Ballistic Gun 7 | . 23 22 7 11 11 11 10 5 9 6 3 1 8 3 3 4 7 Ballistic Cannon 3 | . . . . . . . . 9 9 2 3 4 . 4 7 4 2 Naked Turns . | . . . . . . . . . . . . . . . . . . Heaviest Build 162 | 9 40 41 46 46 46 46 61 67 65 78 156 162 152 116 110 106 143 Greatest Support 100 | 20 20 20 43 43 72 72 72 72 72 78 78 100 100 87 87 97 97 Greatest Overweight (x) 22 | . 1 2 1 1 1 . . 21 . . 22 2 2 3 1 1 8 Average Overweight (x) . | . . 1 . 1 . . . . . . . 1 . . 1 . 1 Largest Inventory Capacity 32 | 6 12 12 12 12 12 12 12 12 12 12 32 32 32 12 12 12 32 Average Capacity 15 | 6 10 12 12 12 12 12 12 12 12 12 16 32 21 12 12 12 31 Most Carried 32 | 5 12 12 12 12 12 12 12 12 12 12 29 32 31 12 12 12 12 Average Carried 13 | 3 8 12 11 11 11 12 11 11 12 10 13 31 19 10 12 11 8 Final Capacity 32 | 6 12 12 12 12 12 12 12 12 12 12 32 32 12 12 12 12 12 Final Carried 32 | 2 12 12 12 12 12 12 12 12 12 11 29 32 12 12 12 12 7 Class Distribution -------------------- 48% | Scavenger-Mutant 41% | Mutant 6% | Commander-Mutant 3% | Hauler-Mutant Dominant Class ---------------- Mutant | -10/Materials Scavenger-Mutant | -10/Mines Scavenger-Mutant | -9/Materials Scavenger-Mutant | -9/Mines Scavenger-Mutant | -9/Exiles Mutant | -8/Mines Mutant | -8/Materials Mutant | -8/Storage Mutant | -8/Recycling Mutant | -6/Factory Commander-Mutant | -6/Extension Scavenger-Mutant | -6/Cetus Scavenger-Mutant | -6/Archives Scavenger-Mutant | -5/Factory Mutant | -5/Upper Caves Mutant | -5/Warlord Hauler-Mutant | -4/Proximity Caves Resources | -11 -10 -10 -9 -9 -9 -8 -8 -8 -8 -6 -6 -6 -6 -5 -5 -5 -4 ----------- Run | Scr Mat Min Mat Min Exi Min Mat Sto Rec Fac Ext Cet Arc Fac Upp War Pro Matter Collected 5206 | 200 117 99 205 . . 10 210 272 . 138 788 827 294 924 331 468 323 Remotely . | . . . . . . . . . . . . . . . . . . Salvage Created 4179 | . 345 252 499 . . . 276 131 . 72 452 336 294 658 145 353 366 Parts 201 | . 20 17 41 . . . 22 7 . 1 18 15 11 21 2 14 12 Haulers Intercepted 1 | . . . . . . . . . . . . . . 1 . . . Recyclers Shooed 8 | . 2 . 1 . . . . . . . 1 . . 4 . . . Parts Field Recycled . | . . . . . . . . . . . . . . . . . . Retrieved Matter . | . . . . . . . . . . . . . . . . . . Parts Self-Destructed 104 | . . . . . . . . . . . . . . . 2 95 7 Prevented 20 | . . . . . . . . . . . . . . . . 20 . Kills | -11 -10 -10 -9 -9 -9 -8 -8 -8 -8 -6 -6 -6 -6 -5 -5 -5 -4 ------- Run | Scr Mat Min Mat Min Exi Min Mat Sto Rec Fac Ext Cet Arc Fac Upp War Pro Combat Hostiles Destroyed 88 | . 5 7 14 . . . 8 4 . 1 6 12 4 10 3 5 9 Guns 55 | . 5 7 13 . . . 8 1 . 1 2 1 4 5 1 4 3 Cannons 21 | . . . . . . . . 3 . . 3 2 . 4 2 1 6 AOE 11 | . . . 1 . . . . . . . 1 9 . . . . . Classes Destroyed 15 | . 4 1 3 . . . . . . . 1 2 . 2 . 2 . Worker 5 | . 1 . 2 . . . . . . . 2 . . . . . . Builder 1 | . . . 1 . . . . . . . . . . . . . . Hauler 1 | . . . . . . . . . . . . . . 1 . . . Recycler 3 | . 1 1 . . . . . . . . 1 . . . . . . Operator 2 | . 2 . . . . . . . . . . . . . . . . Swarmer 23 | . . 5 6 . . . 4 . . . . 6 . . . . 2 Grunt 32 | . 5 2 4 . . . 2 3 . . 2 3 . 3 1 3 4 Brawler 1 | . . . . . . . . . . . . . . 1 . . . Duelist 2 | . . . 1 . . . . . . . . . . . 1 . . Sentry 19 | . . . 3 . . . 2 1 . 1 3 . 4 4 1 . . Specialist 1 | . . . . . . . . . . . . . . . . 1 . Hunter 2 | . . . . . . . . . . . . 2 . . . . . Programmer 6 | . . . . . . . . . . . . 1 . 2 . . 3 Behemoth 1 | . . . . . . . . . . . 1 . . . . . . Striker 1 | . . . . . . . . . . . . . . . . 1 . Guerrilla 1 | . . . . . . . . . . . . 1 . . . . . Best Kill Streak 5 | . 4 2 5 . . . 5 1 . 1 5 4 1 2 2 2 4 Combat Bots Only 5 | . 2 2 4 . . . 5 1 . 1 3 4 1 2 2 2 4 Max Kills in Single Turn 2 | . 1 1 2 . . . 1 1 . 1 2 2 1 1 1 1 1 Gunslinging . | . . . . . . . . . . . . . . . . . . Exploded 2 | . . . 1 . . . . . . . 1 2 . . . . . Melee . | . . . . . . . . . . . . . . . . . . Uniques/NPCs Destroyed . | . . . . . . . . . . . . . . . . . . Combat | -11 -10 -10 -9 -9 -9 -8 -8 -8 -8 -6 -6 -6 -6 -5 -5 -5 -4 -------- Run | Scr Mat Min Mat Min Exi Min Mat Sto Rec Fac Ext Cet Arc Fac Upp War Pro Damage Taken 14682 | . 334 341 839 27 . . 513 497 . 59 1293 2076 1299 3058 942 1349 2055 Core 1733 | . 70 42 131 . . . 25 47 . 29 110 158 113 560 137 107 204 Absorbed by Shields 685 | . . . . . . . . . . 48 372 52 68 44 . 101 . Core Remaining (%) 71 | 100 . 55 . . . 67 . . 86 . . . 51 . . . . Volleys Fired 451 | . 35 32 47 . . . 28 27 . 5 37 56 45 68 14 23 34 Largest 2 | . 2 2 2 . . . 2 2 . 1 2 2 2 2 2 2 2 Hottest 130 | . 60 60 130 . . . 68 89 . 25 100 110 113 114 114 114 117 Shots Fired 798 | . 70 60 83 . . . 46 54 . 5 66 82 74 114 31 47 66 Gun 576 | . 70 60 83 . . . 46 22 . 5 36 20 74 86 8 23 43 Cannon 212 | . . . . . . . . 32 . . 28 54 . 28 23 24 23 Launcher 10 | . . . . . . . . . . . 2 8 . . . . . Special . | . . . . . . . . . . . . . . . . . . Kinetic 623 | . 57 49 17 . . . 40 53 . 5 61 67 49 104 31 27 63 Thermal 74 | . . . 46 . . . . . . . 3 . 25 . . . . Explosive 10 | . . . . . . . . . . . 2 8 . . . . . Electromagnetic 91 | . 13 11 20 . . . 6 1 . . . 7 . 10 . 20 3 Robot Hit Streak 23 | . 7 6 10 . . . 10 8 . 3 8 6 10 13 15 6 23 Robot Miss Streak 9 | . 4 4 4 . . . 3 4 . 1 4 9 3 3 1 2 2 Penetration Max 1 | . . . . . . . . . . . . 1 1 . . . 1 Secondary Targets 7 | . . 3 2 . . . 1 . . . . . . . . . 1 Max Gunslinging Chain 1 | . . 1 1 . . . 1 . . . . . . . . . 1 Shots Hit Robots 535 | . 47 37 56 . . . 35 32 . 4 52 39 56 78 20 29 50 Core Hits 255 | . 22 15 22 . . . 14 20 . 3 45 35 17 26 7 11 18 Critical Hits 34 | . . 1 . . . . . . . . . 13 4 5 4 . 7 Critical Kills 6 | . . 1 . . . . . . . . . 2 1 2 . . . Critical Parts Destroyed 26 | . . . . . . . . . . . . 10 2 3 4 . 7 Melee Attacks 37 | . . . . . . . 4 1 . 13 15 . . . . 4 . Impact 25 | . . . . . . . . . . 13 12 . . . . . . Slashing 8 | . . . . . . . 4 1 . . 3 . . . . . . Piercing 4 | . . . . . . . . . . . . . . . . 4 . Sneak Attacks . | . . . . . . . . . . . . . . . . . . Combat Hostiles . | . . . . . . . . . . . . . . . . . . Follow-up Attacks . | . . . . . . . . . . . . . . . . . . Damage Inflicted 12852 | . 462 346 933 . . . 526 462 . 69 1491 2180 1403 2178 634 643 1525 Guns 7183 | . 462 318 820 . . . 526 187 . 69 457 171 1403 1412 108 363 887 Cannons 3841 | . . . . . . . . 275 . . 598 758 . 766 526 280 638 Explosions 1753 | . . 28 113 . . . . . . . 361 1251 . . . . . Melee 75 | . . . . . . . . . . . 75 . . . . . . Ramming . | . . . . . . . . . . . . . . . . . . Kinetic 8858 | . 312 240 123 . . . 439 462 . 69 1011 891 902 1920 634 392 1463 Thermal 1253 | . . 28 619 . . . . . . . 105 . 501 . . . . Explosive 1551 | . . . . . . . . . . . 300 1251 . . . . . Electromagnetic 1115 | . 150 78 191 . . . 87 . . . . 38 . 258 . 251 62 Impact 75 | . . . . . . . . . . . 75 . . . . . . Slashing . | . . . . . . . . . . . . . . . . . . Piercing . | . . . . . . . . . . . . . . . . . . Highest Corruption 29 | . . . . . . . . . . . 6 6 6 27 27 29 9 Average Corruption 12 | . . . . . . . . . . . 5 6 6 23 27 5 8 Corruption Purged . | . . . . . . . . . . . . . . . . . . Effects 225 | . . . . . . . . . . . 8 30 18 59 66 20 24 Message Errors 40 | . . . . . . . . . . . 2 6 2 10 14 1 5 Matter Fused 48 | . . . . . . . . . . . 5 9 2 10 7 8 7 Heat Flow Errors 13 | . . . . . . . . . . . 1 3 2 1 2 1 3 Energy Discharges 19 | . . . . . . . . . . . . 2 2 6 6 1 2 Parts Rejected 2 | . . . . . . . . . . . . 1 . 1 . . . Data Loss (minor) 16 | . . . . . . . . . . . . 4 2 4 4 2 . Data Loss (major) 6 | . . . . . . . . . . . . . 1 2 1 1 1 Misfires 12 | . . . . . . . . . . . . 1 3 2 5 1 . Alerts 3 | . . . . . . . . . . . . . . 1 2 . . Misdirections 25 | . . . . . . . . . . . . . . 11 11 3 . Targeting Errors 35 | . . . . . . . . . . . . 3 2 10 13 2 5 Weapon Failures 6 | . . . . . . . . . . . . 1 2 1 1 . 1 Overload Shots . | . . . . . . . . . . . . . . . . . . Overflow Damage 153 | . . . 1 . . . . . . . 26 18 . 91 17 . . Projectiles 108 | . . . . . . . . . . . . . . 91 17 . . Explosions 45 | . . . 1 . . . . . . . 26 18 . . . . . Melee . | . . . . . . . . . . . . . . . . . . Knockbacks 28 | . . . . . . . . 6 . . 4 2 . 4 5 . 7 Impact . | . . . . . . . . . . . . . . . . . . Kinetic 27 | . . . . . . . . 5 . . 4 2 . 4 5 . 7 Secondary 1 | . . . . . . . . 1 . . . . . . . . . Self-Inflicted Damage 87 | . . . 46 . . . . . . . 41 . . . . . . Shots 3 | . . . 2 . . . . . . . 1 . . . . . . Rammed . | . . . . . . . . . . . . . . . . . . Targets Rammed . | . . . . . . . . . . . . . . . . . . Kicked . | . . . . . . . . . . . . . . . . . . Crushed . | . . . . . . . . . . . . . . . . . . Highest Temperature 332 | . 58 60 180 . . . 20 81 . 5 106 260 312 291 252 332 214 Average Temperature 49 | . 18 25 48 . . . 12 30 . 5 22 32 117 89 105 109 47 Received Heat Transfer 2874 | . 174 96 126 . . . 171 234 . 20 205 263 225 799 138 189 234 Effects 2 | . . . . . . . . . . . . . . 1 1 . . Energy Bleed 1 | . . . . . . . . . . . . . . 1 . . . Interference 1 | . . . . . . . . . . . . . . . 1 . . Siege Activations . | . . . . . . . . . . . . . . . . . . Robots Corrupted 1 | . . . . . . . . . . . . . . 1 . . . Combat Hostiles 1 | . . . . . . . . . . . . . . 1 . . . Parts Fried 4 | . . . . . . . . . . . . 2 . 2 . . . Impact Corruptions . | . . . . . . . . . . . . . . . . . . Robots Melted . | . . . . . . . . . . . . . . . . . . Combat Hostiles . | . . . . . . . . . . . . . . . . . . Parts Melted 5 | . . . 3 . . . . . . . . . 2 . . . . Heat Transferred 2198 | . . 50 1321 . . . . . . . 124 . 703 . . . . Parts Sabotaged . | . . . . . . . . . . . . . . . . . . Parts Stolen . | . . . . . . . . . . . . . . . . . . Parts Stripped . | . . . . . . . . . . . . . . . . . . Power Chain Reactions 3 | . . 1 2 . . . . . . . . . . . . . . Missiles Intercepted . | . . . . . . . . . . . . . . . . . . Alert | -11 -10 -10 -9 -9 -9 -8 -8 -8 -8 -6 -6 -6 -6 -5 -5 -5 -4 ------- Run | Scr Mat Min Mat Min Exi Min Mat Sto Rec Fac Ext Cet Arc Fac Upp War Pro Peak Influence 928 | . 237 242 304 64 . . 258 283 109 809 928 921 346 102 . . . Average Influence 294 | . 48 177 138 63 . . 95 211 29 776 619 738 269 51 . . . Maximum Alert Level 3 | . 1 1 1 . . . 1 1 . 3 3 3 1 . . . . Low Security (%) 52 | 100 89 57 81 100 . 100 80 38 100 . . . 29 100 . . . Level 1 16 | . 10 42 18 . . . 19 61 . . 3 . 70 . . . . Level 2 16 | . . . . . . . . . . . 73 35 . . . . . Level 3 14 | . . . . . . . . . . 100 22 64 . . . . . Level 4 . | . . . . . . . . . . . . . . . . . . Level 5 . | . . . . . . . . . . . . . . . . . . High Security . | . . . . . . . . . . . . . . . . . . Max Security . | . . . . . . . . . . . . . . . . . . Squads Dispatched 18 | . 2 . . . . . 2 1 . 1 3 3 . 6 . . . Investigation 6 | . 1 . . . . . 1 . . . . 3 . 1 . . . Extermination 1 | . . . . . . . . . . . . . . 1 . . . Reinforcement 8 | . 1 . . . . . 1 1 . 1 3 . . 1 . . . Assault . | . . . . . . . . . . . . . . . . . . Garrison 3 | . . . . . . . . . . . . . . 3 . . . Intercept . | . . . . . . . . . . . . . . . . . . Construction Impeded 1 | . . . . . . . . . . . . . . 1 . . . Haulers Reinforced . | . . . . . . . . . . . . . . . . . . Stealth | -11 -10 -10 -9 -9 -9 -8 -8 -8 -8 -6 -6 -6 -6 -5 -5 -5 -4 --------- Run | Scr Mat Min Mat Min Exi Min Mat Sto Rec Fac Ext Cet Arc Fac Upp War Pro Distress Signals 7 | . 1 . . . . . 1 . . . 3 1 . . . 1 . Communications Jammed . | . . . . . . . . . . . . . . . . . . Distress Signals . | . . . . . . . . . . . . . . . . . . Times Spotted 218 | . 15 14 25 6 . . 14 13 4 4 27 31 18 11 7 15 14 Peak Tracking Total 8 | . 4 3 5 7 . . 6 6 5 2 8 6 1 4 3 7 6 Tactical Retreats 19 | . . 5 1 . . . 1 3 . . 3 1 . 1 2 1 1 Traps | -11 -10 -10 -9 -9 -9 -8 -8 -8 -8 -6 -6 -6 -6 -5 -5 -5 -4 ------- Run | Scr Mat Min Mat Min Exi Min Mat Sto Rec Fac Ext Cet Arc Fac Upp War Pro Traps Triggered 3 | . 2 . . . . . . . . . . . . . . 1 . Indirectly . | . . . . . . . . . . . . . . . . . . Trap Hack Attempts . | . . . . . . . . . . . . . . . . . . Triggered . | . . . . . . . . . . . . . . . . . . Disarmed . | . . . . . . . . . . . . . . . . . . Reprogrammed . | . . . . . . . . . . . . . . . . . . Reused . | . . . . . . . . . . . . . . . . . . Traps Extracted . | . . . . . . . . . . . . . . . . . . Installed . | . . . . . . . . . . . . . . . . . . Triggered 19 | . . . . . . . . . . . . . . . . 19 . Machines | -11 -10 -10 -9 -9 -9 -8 -8 -8 -8 -6 -6 -6 -6 -5 -5 -5 -4 ---------- Run | Scr Mat Min Mat Min Exi Min Mat Sto Rec Fac Ext Cet Arc Fac Upp War Pro Machines Disabled 16 | . . 1 . . . . 1 2 . . 5 5 2 . . . . Max in Single Turn 2 | . . 1 . . . . 1 1 . . 2 1 1 . . . . Energy Cycler 1 | . . . . . . . . . . . 1 . . . . . . Machines Sabotaged . | . . . . . . . . . . . . . . . . . . Garrisons Compromised . | . . . . . . . . . . . . . . . . . . Overloaded Fab Kills . | . . . . . . . . . . . . . . . . . . Fab Network Shutdowns . | . . . . . . . . . . . . . . . . . . Hacking | -11 -10 -10 -9 -9 -9 -8 -8 -8 -8 -6 -6 -6 -6 -5 -5 -5 -4 --------- Run | Scr Mat Min Mat Min Exi Min Mat Sto Rec Fac Ext Cet Arc Fac Upp War Pro Machines Accessed 30 | . 4 . 3 . 4 . 3 . 2 1 7 2 . 2 . 2 . Terminals 21 | . 4 . 3 . . . 2 . 2 1 7 2 . . . . . Fabricators 1 | . . . . . . . . . . . . . . 1 . . . Repair Stations . | . . . . . . . . . . . . . . . . . . Recycling Units . | . . . . . . . . . . . . . . . . . . Scanalyzers 1 | . . . . . . . 1 . . . . . . . . . . Garrison Access 1 | . . . . . . . . . . . . . . 1 . . . Total Hacks 91 | . 16 . 11 . 19 . 12 . 5 1 12 8 . 5 . 2 . Successful 46 | . 3 . 4 . 19 . 10 . 1 . 4 1 . 2 . 2 . Failed 45 | . 13 . 7 . . . 2 . 4 1 8 7 . 3 . . . Catastrophic 13 | . 2 . 3 . . . . . 1 1 3 1 . 2 . . . Database Lockouts . | . . . . . . . . . . . . . . . . . . Manual 55 | . 16 . 7 . 1 . 6 4 5 1 6 4 3 . . 2 . Terminals 59 | . 16 . 11 . . . 6 . 5 1 12 8 . . . . . Fabricators 3 | . . . . . . . . . . . . . . 3 . . . Repair Stations . | . . . . . . . . . . . . . . . . . . Recycling Units . | . . . . . . . . . . . . . . . . . . Scanalyzers 6 | . . . . . . . 6 . . . . . . . . . . Garrison Access 2 | . . . . . . . . . . . . . . 2 . . . Terminal Hacks 33 | . 2 . 3 . 19 . 1 . 1 . 4 1 . . . 2 . Record 19 | . . . . . 18 . . . . . . 1 . . . . . Open Door 5 | . . . . . . . . . . . 3 . . . . 2 . Terminal Index 1 | . . . 1 . . . . . . . . . . . . . . Unreport Threat 6 | . 1 . 2 . . . 1 . 1 . 1 . . . . . . Recall Investigation 1 | . 1 . . . . . . . . . . . . . . . . EX-Prototype ID Bank 1 | . . . . . 1 . . . . . . . . . . . . Fabricator Hacks 2 | . . . . . . . . . . . . . . 2 . . . Load Schematic 1 | . . . . . . . . . . . . . . 1 . . . Build 1 | . . . . . . . . . . . . . . 1 . . . Repair Station Hacks . | . . . . . . . . . . . . . . . . . . Recycling Unit Hacks . | . . . . . . . . . . . . . . . . . . Scanalyzer 6 | . . . . . . . 6 . . . . . . . . . . Insert Component 3 | . . . . . . . 3 . . . . . . . . . . Analyze 3 | . . . . . . . 3 . . . . . . . . . . Garrison Access Hacks . | . . . . . . . . . . . . . . . . . . Unauthorized Hacks 5 | . 1 . 1 . . . 3 . . . . . . . . . . Terminals 5 | . 1 . 1 . . . 3 . . . . . . . . . . Assimilate 1 | . . . . . . . 1 . . . . . . . . . . Botnet 4 | . 1 . 1 . . . 2 . . . . . . . . . . Fabricators . | . . . . . . . . . . . . . . . . . . Repair Stations . | . . . . . . . . . . . . . . . . . . Recycling Units . | . . . . . . . . . . . . . . . . . . Scanalyzers . | . . . . . . . . . . . . . . . . . . Garrison Access . | . . . . . . . . . . . . . . . . . . Data Cores Recovered . | . . . . . . . . . . . . . . . . . . Used . | . . . . . . . . . . . . . . . . . . Hacking Detections 23 | . 4 . 3 . . . 3 . 2 1 5 3 . 2 . . . Full Trace Events 5 | . . . . . . . 1 . . . . 3 . 1 . . . Feedback Events . | . . . . . . . . . . . . . . . . . . Feedback Blocked . | . . . . . . . . . . . . . . . . . . Robot Schematics Acquired . | . . . . . . . . . . . . . . . . . . Robots Built . | . . . . . . . . . . . . . . . . . . Matter . | . . . . . . . . . . . . . . . . . . Time . | . . . . . . . . . . . . . . . . . . Total Robot Build Rating . | . . . . . . . . . . . . . . . . . . Part Schematics Acquired 3 | . . . . . . . 3 . . . . . . . . . . Parts Built 1 | . . . . . . . . . . . . . . 1 . . . Matter 102 | . . . . . . . . . . . . . . 102 . . . Time 25 | . . . . . . . . . . . . . . 25 . . . Total Part Build Rating 1 | . . . . . . . . . . . . . . 1 . . . Parts Repaired . | . . . . . . . . . . . . . . . . . . Time . | . . . . . . . . . . . . . . . . . . Parts Recycled . | . . . . . . . . . . . . . . . . . . Recycled Matter . | . . . . . . . . . . . . . . . . . . Retrieved Matter . | . . . . . . . . . . . . . . . . . . Retrieved Components . | . . . . . . . . . . . . . . . . . . Parts Scanalyzed 3 | . . . . . . . 3 . . . . . . . . . . Part Schematics Acquired 3 | . . . . . . . 3 . . . . . . . . . . Parts Damaged . | . . . . . . . . . . . . . . . . . . Bothacking | -11 -10 -10 -9 -9 -9 -8 -8 -8 -8 -6 -6 -6 -6 -5 -5 -5 -4 ------------ Run | Scr Mat Min Mat Min Exi Min Mat Sto Rec Fac Ext Cet Arc Fac Upp War Pro Used RIF Installer . | . . . . . . . . . . . . . . . . . . Robots Hacked . | . . . . . . . . . . . . . . . . . . Non-combat . | . . . . . . . . . . . . . . . . . . Combat . | . . . . . . . . . . . . . . . . . . Robot Hacks Applied . | . . . . . . . . . . . . . . . . . . Relay Couplers Released . | . . . . . . . . . . . . . . . . . . Robots Rewired 19 | . 1 . . . . . . . . . 18 . . . . . . Allies Hacked . | . . . . . . . . . . . . . . . . . . Hacks Repelled . | . . . . . . . . . . . . . . . . . . Allies | -11 -10 -10 -9 -9 -9 -8 -8 -8 -8 -6 -6 -6 -6 -5 -5 -5 -4 -------- Run | Scr Mat Min Mat Min Exi Min Mat Sto Rec Fac Ext Cet Arc Fac Upp War Pro Total Allies 24 | . 1 . . 1 . . . . . . 22 . . . . . . Largest Group 17 | . 1 . . 1 . . . . . . 17 8 . . . . . Highest-Rated Group 596 | . 16 . . 31 . . . . . . 596 341 . . . . . Highest-Rated Ally 156 | . 16 . . 31 . . . . . . 156 150 . . . . . Total Orders 4 | . . . . . . . . . . . 4 . . . . . . STAY 3 | . . . . . . . . . . . 3 . . . . . . FOLLOW 1 | . . . . . . . . . . . 1 . . . . . . Ally Attacks 259 | . 8 1 . 2 . . . . . . 157 91 . . . . . Total Damage 4871 | . 60 . . 21 . . . . . . 3390 1400 . . . . . Kills 43 | . 1 . . . . . . . . . 30 12 . . . . . Allies Corrupted . | . . . . . . . . . . . . . . . . . . Allies Melted 2 | . . . . . . . . . . . 1 . . . . 1 . Intel | -11 -10 -10 -9 -9 -9 -8 -8 -8 -8 -6 -6 -6 -6 -5 -5 -5 -4 ------- Run | Scr Mat Min Mat Min Exi Min Mat Sto Rec Fac Ext Cet Arc Fac Upp War Pro Robot Analysis Total . | . . . . . . . . . . . . . . . . . . Derelict Logs Recovered 4 | . . 1 . 1 . . . . . . . . . . 2 . . Drone Launches 9 | . . . . . . . . . . . . . . . . 9 . Drone Recoveries . | . . . . . . . . . . . . . . . . . . Exploration | -11 -10 -10 -9 -9 -9 -8 -8 -8 -8 -6 -6 -6 -6 -5 -5 -5 -4 ------------- Run | Scr Mat Min Mat Min Exi Min Mat Sto Rec Fac Ext Cet Arc Fac Upp War Pro Turns Passed 9510 | 3 754 373 747 229 250 70 366 300 51 228 1114 788 570 1137 852 1172 506 Spaces Moved 5944 | 1 436 170 376 152 244 140 281 225 101 261 845 386 270 576 527 726 227 Core 11 | . . . . . . . . 4 . . 7 . . . . . . Treads . | . . . . . . . . . . . . . . . . . . Legs 4074 | 1 436 170 376 152 122 . . . . . 105 386 270 576 527 726 227 Wheels . | . . . . . . . . . . . . . . . . . . Hover . | . . . . . . . . . . . . . . . . . . Flight 1859 | . . . . . 122 140 281 221 101 261 733 . . . . . . Fastest Speed 39 | 120 120 150 120 150 50 50 50 50 50 39 39 150 120 120 150 120 150 Average Speed 119 | 120 142 159 149 150 100 50 50 68 50 39 73 155 133 142 150 148 166 Slowest Speed 1150 | 120 150 180 150 150 150 50 50 1100 50 39 1150 180 180 210 150 150 360 Overloaded Moves . | . . . . . . . . . . . . . . . . . . Propulsion Burnouts . | . . . . . . . . . . . . . . . . . . Robots Hopped 24 | . . . . . . 4 2 11 . . 7 . . . . . . Cave-ins Triggered 2 | . . . . . . . . . . . 2 . . . . . . Exploration Rate (%) 46 | 2 67 44 38 27 61 32 19 41 36 10 73 80 91 11 73 91 38 Regions Visited 17 Branch Regions 12 Pre-discovered Areas 2 | . . . . 1 1 . . . . . . . . . . . . Known Exits Taken . | . . . . . . . . . . . . . . . . . . Unknown Exits Taken 17 | 1 1 1 1 1 1 1 1 1 1 1 1 1 1 1 1 1 . Scrap Searched 2 | . . . . . . . . . . . . . . . 2 . . Spaces Dug 27 | . . . . . . . 4 . . 8 11 . . . . 4 . Terrain Destroyed 172 | . . . 7 . . . 4 . . 8 38 45 2 16 9 21 22 Melee 27 | . . . . . . . 4 . . 8 11 . . . . 4 . Projectile 71 | . . . . . . . . . . . . 5 2 16 9 17 22 AOE 74 | . . . 7 . . . . . . . 27 40 . . . . . Actions | -11 -10 -10 -9 -9 -9 -8 -8 -8 -8 -6 -6 -6 -6 -5 -5 -5 -4 --------- Run | Scr Mat Min Mat Min Exi Min Mat Sto Rec Fac Ext Cet Arc Fac Upp War Pro Total 7526 | 4 514 224 479 154 251 135 450 306 100 357 1248 500 409 782 560 767 286 Wait 459 | . 16 11 17 1 . . 125 35 . 64 48 1 56 61 13 . 11 Move 5881 | . 435 169 375 151 243 131 276 204 100 260 830 385 269 575 526 725 227 Hop 21 | . . . . . . 4 2 9 . . 6 . . . . . . Pick Up 96 | . 12 1 9 1 1 . 2 3 . 5 29 7 5 17 1 1 2 Fast Attach 86 | . 2 4 8 . 1 . 3 6 . 1 14 8 10 22 1 2 4 Attach 45 | . 1 . 4 . . . 2 . . 5 5 3 8 10 . 1 6 Detach 8 | . . . 1 . . . . . . . 5 . . 2 . . . Swap 87 | . 3 2 6 . . . 4 9 . 2 20 19 8 7 2 4 1 Drop 129 | 4 6 5 12 1 6 . 4 12 . 2 20 21 8 20 3 4 1 Fire 451 | . 35 32 47 . . . 28 27 . 5 37 56 45 68 14 23 34 Melee 37 | . . . . . . . 4 1 . 13 15 . . . . 4 . Ram . | . . . . . . . . . . . . . . . . . . Kick . | . . . . . . . . . . . . . . . . . . Crush . | . . . . . . . . . . . . . . . . . . Escape Stasis 1 | . . . . . . . . . . . 1 . . . . . . Rewire 222 | . 4 . . . . . . . . . 218 . . . . . . Trap . | . . . . . . . . . . . . . . . . . . Miscellaneous 3 | . . . . . . . . . . . . . . . . 3 . Route ------- -11/Scrapyard -10/Materials (discovered 3 exits: *Mat x2 / [*Min]) -10/Mines -9/Materials -9/Mines (discovered 2 exits: *Mat / *Exi) -9/Exiles (discovered 2 exits: [*Min x2]) -8/Mines -8/Materials -8/Storage -8/Recycling -6/Factory (discovered 2 exits: *Fac / *Ext) -6/Extension (discovered 3 exits: *Fac x2 / *Cet) -6/Cetus -6/Archives (discovered 3 exits: *Fac / [*Hub x2]) -5/Factory (discovered 2 exits: [*Upp x2]) -5/Upper Caves -5/Warlord -4/Proximity Caves History --------- Turn | Location | Event 4 | -11/Scrapyard | Discovered new exit (range 0) 4 | -11/Scrapyard | Entered Materials 297 | -10/Materials | Discovered new exit (range 16) 311 | -10/Materials | Build established: Mutant 482 | -10/Materials | Discovered new exit (range 10) 640 | -10/Materials | Discovered new exit (range 15) 758 | -10/Materials | Entered Mines 758 | -10/Mines | Accompanied by 1 ally 863 | -10/Mines | Learned 2 Materials zone layouts 1093 | -10/Mines | Discovered new exit (range 14) 1117 | -10/Mines | Build established: Scavenger-Mutant 1131 | -10/Mines | Entered Materials 1131 | -9/Materials | Evolved 2 slots: Propulsion x2 1381 | -9/Materials | Lost 4 parts (1p2n1w) 1574 | -9/Materials | Lost 3 parts (1p1n1w) 1604 | -9/Materials | Discovered new exit (range 16) 1878 | -9/Materials | Entered Mines 1922 | -9/Mines | Learned location of Storage (-8) 1951 | -9/Mines | Met a Derelict bent on vengeance 1953 | -9/Mines | Received a Mining Laser from a helpful Derelict 2010 | -9/Mines | Discovered new exit (range 12) 2072 | -9/Mines | Assembled infested the area 2101 | -9/Mines | Deemed a non-threat by the Exiles lab entrance 2101 | -9/Mines | Discovered new exit (range 5) 2107 | -9/Mines | Entered Exiles 2130 | -9/Exiles | Discovered new exit (range 15) 2145 | -9/Exiles | Met 8R-AWN 2170 | -9/Exiles | Met EX-HEX 2209 | -9/Exiles | Met EX-BIN 2229 | -9/Exiles | Aligned with FarCom system 2230 | -9/Exiles | Given EX-Vault access code 2280 | -9/Exiles | Opened EX-Vault 2293 | -9/Exiles | Found Flying Fortress v7 2310 | -9/Exiles | Warned to stay clear of 0b10 Research branches 2325 | -9/Exiles | Met EX-DEC 2327 | -9/Exiles | Learned location of Zion (-7) 2352 | -9/Exiles | Discovered new exit (range 10) 2357 | -9/Exiles | Left Exiles lab with Flying Fortress v7 2357 | -9/Exiles | Entered Mines 2425 | -8/Mines | Discovered new exit (range 4) 2427 | -8/Mines | Entered Materials 2427 | -8/Materials | Evolved 2 slots: Utility x2 2592 | -8/Materials | Build established: Mutant 2701 | -8/Materials | Discovered new exit (range 16) 2793 | -8/Materials | Entered Storage 3087 | -8/Storage | Used back door to open Recycling access 3087 | -8/Storage | Discovered new exit (range 5) 3093 | -8/Storage | Entered Recycling 3098 | -8/Recycling | Spotter reported a threat 3122 | -8/Recycling | Spotter reported a threat 3124 | -8/Recycling | Spotter reported a threat 3131 | -8/Recycling | Spotter reported a threat 3131 | -8/Recycling | Spotter reported a threat 3140 | -8/Recycling | Discovered new exit (range 8) 3144 | -8/Recycling | Entered Factory 3144 | -6/Factory | Evolved 4 slots: Power x1, Propulsion x1, Utility x2 3271 | -6/Factory | Discovered new exit (range 9) 3280 | -6/Factory | Discovered new exit (range 3) 3372 | -6/Factory | Entered Extension 3470 | -6/Extension | Rescued a captive Derelict 3905 | -6/Extension | Build established: Commander-Mutant 3919 | -6/Extension | Rescued a captive Derelict 3920 | -6/Extension | Rescued a captive Derelict 3932 | -6/Extension | Destroyed B-75 Beast 3942 | -6/Extension | Spotted B-75 Beast 3960 | -6/Extension | Discovered new exit (range 3) 3972 | -6/Extension | Allies destroyed B-75 Beast 3990 | -6/Extension | Lost 3 parts (2u1w) 4100 | -6/Extension | Discovered new exit (range 16) 4100 | -6/Extension | Discovered new exit (range 16) 4146 | -6/Extension | Crushed by falling debris 4181 | -6/Extension | Energy Cycler disabled 4183 | -6/Extension | Crushed by falling debris 4183 | -6/Extension | Rescued a captive Derelict 4192 | -6/Extension | Rescued a captive Derelict 4193 | -6/Extension | Rescued A7 4241 | -6/Extension | Disrupted transfer network 4486 | -6/Extension | Entered Cetus 4486 | -6/Cetus | Accompanied by 8 allies 4491 | -6/Cetus | Acquired a Cetus Manufacturing Module code from A7 4511 | -6/Cetus | Spotted Cetus Guard 4511 | -6/Cetus | Spotted Cetus Guard 4514 | -6/Cetus | Spotted Cetus Guard 4515 | -6/Cetus | Spotted Cetus Guard 4521 | -6/Cetus | Allies destroyed Cetus Guard 4536 | -6/Cetus | Allies destroyed Cetus Guard 4541 | -6/Cetus | Allies destroyed Cetus Guard 4541 | -6/Cetus | Allies destroyed Cetus Guard 4545 | -6/Cetus | Build established: Scavenger-Mutant 4574 | -6/Cetus | Cetus Manufacturing Module disabled 4746 | -6/Cetus | Door terminal overloaded 4789 | -6/Cetus | Failed to start Cetus Manufacturing Module 4845 | -6/Cetus | Discovered new exit (range 16) 4905 | -6/Cetus | Escorted A7 to Cetus Mainframe 5051 | -6/Cetus | Extracted ID and sensor layout for unrecognized location from A7's data core 5072 | -6/Cetus | Found Prototype Protection 5072 | -6/Cetus | Identified Med. Regenerative Plating 5091 | -6/Cetus | Lost 3 parts (1p2w) 5274 | -6/Cetus | Entered Archives 5371 | -6/Archives | Lost 5 parts (2p1n1u1w) 5456 | -6/Archives | Lost 3 parts (2n1u) 5579 | -6/Archives | Lost 4 parts (1p1n1u1w) 5680 | -6/Archives | Discovered new exit (range 16) 5696 | -6/Archives | Unable to access archive contents 5702 | -6/Archives | Discovered new exit (range 16) 5709 | -6/Archives | Unable to access archive contents 5721 | -6/Archives | Discovered new exit (range 13) 5844 | -6/Archives | Entered Factory 5844 | -5/Factory | Evolved 2 slots: Utility x2 5934 | -5/Factory | Lost 3 parts (2p1u) 6044 | -5/Factory | Discovered new exit (range 9) 6130 | -5/Factory | Found Prototype Processor 6130 | -5/Factory | Identified Exp. Terrain Scan Processor 6201 | -5/Factory | System corruption reached 10% 6257 | -5/Factory | Lost 15 parts (1p4n7u3w) 6572 | -5/Factory | Core integrity fell below 50% 6679 | -5/Factory | Found Prototype Processor 6679 | -5/Factory | Identified Exp. Targeting Computer 6830 | -5/Factory | Fabricated Humpback (x1) 6908 | -5/Factory | Discovered new exit (range 14) 6981 | -5/Factory | Entered Upper Caves 6987 | -5/Upper Caves | Attracted the attention of an 0b10 checkpoint 7025 | -5/Upper Caves | Learned Factory terminal intel 7085 | -5/Upper Caves | Spotted B-75 Beast 7181 | -5/Upper Caves | Build established: Mutant 7480 | -5/Upper Caves | Learned 8 Factory zone layouts 7818 | -5/Upper Caves | A Derelict revealed a hidden shortcut to "reach the base" 7833 | -5/Upper Caves | Entered Warlord 7913 | -5/Warlord | System corruption cleaned by Quarantine Array 8031 | -5/Warlord | Opened side exit 8309 | -5/Warlord | Met Warlord 8332 | -5/Warlord | Warlord's base attacked by MAIN.C 8682 | -5/Warlord | Warlord forces counterattacked 8835 | -5/Warlord | Spotted Striker 8844 | -5/Warlord | Destroyed Striker 8874 | -5/Warlord | Spotted Striker 8896 | -5/Warlord | Spotted Striker 8964 | -5/Warlord | Spotted Executioner 8996 | -5/Warlord | Core integrity fell below 20% 8997 | -5/Warlord | Discovered new exit (range 6) 9005 | -5/Warlord | Entered Proximity Caves 9053 | -4/Proximity Caves | Lost 6 parts (1p4u1w) 9279 | -4/Proximity Caves | Lost 3 parts (2n1w) 9460 | -4/Proximity Caves | Lost 5 parts (4n1u) 9511 | -4/Proximity Caves | Destroyed by S-27 Virus with Autogun Last Messages --------------- 09430_ System corrupted: Enh. Gauss Cannon jammed. 09430_ System corrupted: Railgun targeting data glitched. 09430_ Destroyed Electrolaser. 09433_ G-67 Veteran destroyed. 09436_ Acquired 49 matter. 09437_ System corrupted: Energy discharge (-74). 09440_ Acquired 40 matter. 09443_ Acquired 39 matter. 09461_ System corrupted: Matter fused (-5). 09476_ 8F1H =RWA#Y/NP:09HGQUA VB7Q7UN/%L7< A 09498_ C-30 ARC bursts open, deploying its payload. 09498_ S-27 Virus unfolds itself. 09499_ Slug penetrates Wall. 09501_ Railgun destroyed. 09504_ Humpback destroyed. 09504_ P-70 Sage resets S-27 Virus, system corruption cleaned. 09506_ S-27 Virus destroyed. 09508_ P-70 Sage resets S-27 Virus, system corruption cleaned. 09509_ S-27 Virus destroyed. 09509_ Slug penetrates Wall. Map ----- +----------------------------------------------------+ | ?????????????????????????????????????????????????? | | ?????????????????????????????????????????????????? | | ?????????????????????????????????????????????????? | | ?????????????????????????????????????????????????? | | ?????????????????????????????????????????????????? | | ?????????????????????????????????????????????????? | | ?????????????????????????????????????????????????? | | ?????????????????????????????????????????????????? | | ?????????????????????????????????????????????????? | | ?????????????????????????????????????????????????? | | ?????????????????????????????????????????????????? | | ?????????????????????????????????????????????????? | | ?????????????????????????????????????????????????? | | ?????????????????#???????????????????????????????? | | ????????????????## ??????????????????????????????? | | ????????????????# ?####????????????????????????? | | ????????????????? ? #????????????????????????? | | ???????#?????????? #% #????????????????????????? | | ???????# ?????????? # #????????????????????????? | | ??????## ???????????;;% #????????????????????????? | | ??????# ???####???#;%s##???????????????????????? | | ??????# #### #####; ##??????????????????????? | | ??????# ## s #??????????????????????? | | ???????# #??????????????????????? | | ????????# ######?????????????????? | | ????????## ## @ #?????????????????? | | ?????????### ### ##?????????????????? | | ??????# ??### #?# ###??????????????????? | | ???????# ?# ## ##????????????????????? | | ????????# ## ### ##?????????????????????? | | ?????????# ##?# ##??????????????????????? | | ?????????# # ##?# ##???????????????????????? | | ?????????## ##?# #????????????????????????? | | ?????????# ### #????????????????????????? | | ?????????# ## ##????????????????????????? | | ?????????## ### #??????????????????????????? | | ??????????## #?###???????????????????????????? | | ???????????# #???????????????????????????????? | | ??????????## #???????????????????????????????? | | #???####### ##??????????????????????????????? | | ???# ##?????????????????????????????? | | ???# ##????????????????????????????? | | ???# #####????????????????????????? | | #### ### ##???????????????????????? | | ## ##?## #### #???????????????????????? | | #???######??## #???????????????????????? | | #????????????# #??????????????????????? | | # # ##????????????## ##??????????????????????? | | # # ##???????????????###???????????????????????? | | # # #??????????????????????????????????????????? | +----------------------------------------------------+ Best States ------------- Heat Dissipation 116 Energy Generation 40 Energy Capacity 1005 Matter Stores 543 Matter Capacity 700 Sight Range 16 Robot Scan Range 16 Terrain Scan Density 1010 Power Amplification 30 Armor Coverage 825 Resistance: TH 15 Core Shielding 30 Thermal Conversion 60 Evasion (%) 62 Targeting Accuracy 12 Target Analysis 6 Core Analysis 6 Recoil Reduction 6 Item Schematics ----------------- Humpback | -8/Materials | Scanalyzed Hcp. Storage Unit | -8/Materials | Scanalyzed Mni. Grenade Launcher | -8/Materials | Scanalyzed Robot Schematics ------------------ None Fabricated ------------ Humpback | x1 | -5/Factory Alien Tech Used ----------------- None Achievements -------------- None Challenges ------------ None Game ------ Seed SigixGlidesysProcessor Manual? 0 Play Time 01:27:38 Cumulative 262.4 hours Start 2020.05.15 @ 09:52:48 End 2020.05.15 @ 13:23:06 Sessions 3 Manual Loads 0 Difficulty Rogue Special Mode None Game No. 401 Rogue 400 Adventurer 0 Explorer 1 Win Type - Total 1 Types 1/0/0/0/0/0/0 Lore% 67 Gallery% 80 Achievement% 54 Wizard Run 0 Options --------- ASCII 1 Keyboard 1 Movement Vi Keybinds 0 Fullscreen 2 Font 14/Cog Map View 72x54 Tactical HUD 1 Map Filters NONE Filters LOW_CONTRAST(13,24,33) Steam 0 RUN: 28d8c508-f269-4aa3-a9d1-0def480874a0